lending/lending_fUSD_20250131
["ID","MTS","AMOUNT","RATE_DAILY","PERIOD"]
[351050099,1738307448521,-219.54706648,0.00019315,3]
[351050102,1738307448537,-258.20737898,0.00019315,3]
[351050104,1738307448548,-410.81555454,0.00019315,3]
[351050106,1738307448558,-410.37486546,0.00019315,3]
[351050947,1738308319583,446.04842915,9e-05,2]
[351050948,1738308353896,4170.96605304,6.94e-05,2]
[351050950,1738308437335,205.0,9.8e-05,2]
[351050952,1738308512665,961.38831216,9.828e-05,2]
[351050953,1738308522496,301.90747003,9e-05,3]
[351050954,1738308524090,76286.3446584,8e-05,2]
[351050959,1738308559148,-292.131811,9.948e-05,2]
[351050960,1738308559169,-300.0,9.999e-05,2]
[351050961,1738308559191,-257.22716285,9.999e-05,2]
[351050962,1738308559211,-362.35326759,9.999e-05,2]
[351050963,1738308559231,-509.91056558,9.999e-05,2]
[351050964,1738308559251,-1675.22761498,0.0001,2]
[351050965,1738308561582,600.27,9.472e-05,2]
[351050973,1738308613759,-150.0,9.999e-05,2]
[351050974,1738308613785,-1120.1735836,0.0001,2]
[351050975,1738308613816,-19431.6035352,0.0001,2]
[351050976,1738308613842,-64823.2228812,0.0001,2]
[351050983,1738308631715,-52607.51,0.0001,2]
[351050986,1738308631851,-20571.09618522,0.0001,2]
[351050987,1738308631862,-419.16,0.0001,2]
[351050988,1738308631873,-2069.28728858,0.0001,2]
[351050989,1738308631885,-14881.84074223,0.0001,2]
[351050990,1738308631897,-3333.53201086,0.0001,2]
[351050991,1738308631909,-254.99062844,0.0001,2]
[351050992,1738308631924,-3172.50000046,0.0001,2]
[351050993,1738308631935,-19957.35300001,0.0001,2]
[351050994,1738308632048,-63331.95138979,0.0001,2]
[351050995,1738308632086,-14925.00000001,0.0001,2]
[351050996,1738308632097,-254698.7029388,0.0001,2]
[351050997,1738308632107,-158023.34408081,0.0001,2]
[351051073,1738308637619,-276.04600532,0.0001,2]
[351051074,1738308637631,-4856.51,0.0001,2]
[351051075,1738308637727,-28.28142704,0.0001,2]
[351051076,1738308637738,-5721.05063098,0.0001,2]
[351051077,1738308637749,-397201.99999994,0.0001,2]
[351051078,1738308637760,-3381.9583645,0.0001,2]
[351051079,1738308637775,-464.97393649,0.0001,2]
[351051080,1738308637786,-5859.45755793,0.0001,2]
[351051081,1738308637807,-5564.58421112,0.0001,2]
[351051082,1738308637836,-2081132.50174034,0.0001,2]
[351051083,1738308637846,-214.45313294,0.0001,2]
[351051084,1738308637855,-2619.50117665,0.0001,2]
[351051085,1738308637865,-1453.12867589,0.0001,2]
[351051086,1738308637874,-157.86,0.00010137,2]
[351051087,1738308637884,-364.83,0.00010137,2]
[351051088,1738308637893,-256.99512115,0.000107,2]
[351051089,1738308637903,-16324.55280494,0.00010768,2]
[351051090,1738308637912,-160923.35183853,0.00011,2]
[351051091,1738308637921,-152.54054012,0.00011051,2]
[351051092,1738308637931,-2711.85718144,0.00011099,2]
[351051093,1738308637940,-2711.8571814,0.00011099,2]
[351051094,1738308637949,-2711.8571814,0.00011099,2]
[351051095,1738308637958,-2711.8571814,0.00011099,2]
[351051096,1738308637968,-2711.8571814,0.00011099,2]
[351051098,1738308637978,-10255.95015061,0.00011099,2]
[351051100,1738308637987,-10255.95015059,0.00011099,2]
[351051102,1738308637996,-10255.95015059,0.00011099,2]
[351051104,1738308638005,-10255.95015059,0.00011099,2]
[351051106,1738308638015,-150.0,0.00011151,2]
[351051107,1738308638024,-500.0,0.000112,4]
[351051108,1738308638033,-1000.0,0.000113,4]
[351051109,1738308638042,-1500.0,0.000114,4]
[351051110,1738308638051,-2000.0,0.000115,4]
[351051111,1738308638060,-2500.0,0.000116,4]
[351051112,1738308638070,-500.0,0.000117,4]
[351051113,1738308638080,-600.27,0.00011736,2]
[351051115,1738308638089,-500.0,0.000118,4]
[351051117,1738308638098,-500.0,0.000119,4]
[351051118,1738308638107,-174.34398508,0.000119,2]
[351051120,1738308638116,-190.04591604,0.000119,2]
[351051122,1738308638125,-202.1318935,0.000119,2]
[351051123,1738308638134,-203.2934038,0.000119,2]
[351051124,1738308638143,-2751.0,0.00011932,2]
[351051125,1738308638151,-37368.02857565,0.00011999,2]
[351051126,1738308638160,-2178.3197766,0.00012,2]
[351051127,1738308638169,-8330604.33802205,0.00012,2]
[351051128,1738308638180,-1302.3062874,0.00012,2]
[351051131,1738308638199,-26275.70474696,0.00012,2]
[351051135,1738308638221,-10258.70478585,0.00012,2]
[351051304,1738308639813,-1021.6,0.00011099,2]
[351051310,1738308639854,-378.28100011,0.00011099,2]
[351051315,1738308639897,-705.20017422,0.00011099,2]
[351051317,1738308639908,-394.04068009,0.00011099,2]
[351051319,1738308639919,-7756.82829617,0.00011099,2]
[351051321,1738308639929,-18440.66073283,0.00012,2]
[351051334,1738308640042,-573.619998,0.00012,2]
[351051336,1738308640057,-102802.00503348,0.00012,2]
[351051339,1738308640070,-118049.90878768,0.00012,2]
[351051356,1738308640226,-5896.90035847,0.00012,2]
[351051596,1738308642647,-11587.0,0.00012,2]
[351051612,1738308642770,-336.621,0.00011099,2]
[351051632,1738308642961,-2127.5000002,0.00011099,2]
[351051634,1738308642972,-247.7361812,0.00011099,2]
[351051636,1738308642981,-396421.32160036,0.00012,2]
[351051918,1738308645698,-10255.95015059,0.00011099,2]
[351051920,1738308645708,-12327.68337877,0.00012,2]
[351051922,1738308645720,-524.01708245,0.00012,2]
[351051924,1738308645732,-1378.60713975,0.00012,2]
[351051935,1738308645830,-98994.44037591,0.00012,2]
[351051940,1738308645868,-1633.43232,0.00012,2]
[351051943,1738308645880,-313.87610186,0.00012,2]
[351051945,1738308645893,-41955.43823097,0.00012,2]
[351051948,1738308645909,-5161.59103803,0.00012,2]
[351051950,1738308645921,-3487.380671,0.00012,2]
[351051952,1738308645933,-7151.25,0.00012,2]
[351051955,1738308645949,-423.9,0.00012,2]
[351051957,1738308645961,-876.7624557,0.00012,2]
[351051959,1738308645972,-1686.74817616,0.00012,2]
[351052215,1738309118996,150.0,0.0001112,5]
[351052216,1738309235572,168.19,8.346e-05,2]
[351052217,1738309235773,168.19,9.737e-05,2]
[351052219,1738309362785,549.94,8.407e-05,2]
[351052220,1738309469349,200.0,8.365e-05,2]
[351052224,1738309771152,-357.664498,9.948e-05,2]
[351052225,1738309771174,-820.23386,0.0001,2]
[351052234,1738309831920,-264.5654629,0.00010359,2]
[351052235,1738309831930,-1500.0,0.00010389,2]
[351052236,1738309831940,-1000.0,0.0001043,2]
[351052237,1738309831950,-6195.6381124,0.00010459,2]
[351052238,1738309831961,-254.37134798,0.00010459,2]
[351052239,1738309832009,-6736.63674494,0.00010459,2]
[351052240,1738309832020,-10703.35379468,0.00010459,2]
[351052241,1738309832030,-764.391816,0.00010536,2]
[351052242,1738309832041,-334.36,0.00010536,2]
[351052243,1738309832054,-160.9,0.00010583,2]
[351052244,1738309832068,-170.42,0.0001061,2]
[351052245,1738309832081,-549.94,0.00010671,2]
[351052246,1738309832092,-250.0,0.00010706,2]
[351052247,1738309832106,-740.23,0.0001081,2]
[351052248,1738309832119,-669.47883399,0.00010957,2]
[351052249,1738309832133,-5391.23,0.00010958,2]
[351052250,1738309832146,-168.19,0.00011127,2]
[351052251,1738309832159,-150.0,0.00011428,2]
[351052252,1738309832171,-433.0,0.00011527,2]
[351052253,1738309832183,-400.0,0.000116,4]
[351052254,1738309832192,-633.0,0.000116,2]
[351052255,1738309832205,-800.0,0.000117,4]
[351052256,1738309832217,-384.95373682,0.00011704,2]
[351052257,1738309832230,-1000.0,0.00011734,2]
[351052258,1738309832243,-1200.0,0.000118,4]
[351052259,1738309832256,-334.36,0.00011853,2]
[351052260,1738309832268,-150.0,0.00011879,2]
[351052261,1738309832281,-49105.65877438,0.0001188,2]
[351052262,1738309832295,-1692.97211125,0.000119,2]
[351052263,1738309832308,-1600.0,0.000119,4]
[351052264,1738309832321,-160.961593,0.000119,2]
[351052265,1738309832334,-2808.29156218,0.000119,2]
[351052267,1738309832346,-4102.38006029,0.000119,2]
[351052269,1738309832359,-501.19637514,0.00011973,2]
[351052272,1738309832372,-500.0,0.00011973,2]
[351052274,1738309832384,-240.97676225,0.0001199,2]
[351052276,1738309832396,-630.62,0.00011999,2]
[351052278,1738309832407,-500.0,0.00011999,2]
[351052281,1738309832417,-500.0,0.00011999,2]
[351052283,1738309832428,-500.0,0.00011999,2]
[351052285,1738309832442,-535.06146743,0.00011999,2]
[351052287,1738309832454,-500.0,0.00011999,2]
[351052290,1738309832464,-500.0,0.00011999,2]
[351052292,1738309832474,-1060394.0731124,0.00012,2]
[351052295,1738309832498,-1172.40299645,0.00012,2]
[351052298,1738309832513,-677.47644213,0.00012,2]
[351052303,1738309832554,-30308.0417218,0.00012,2]
[351052305,1738309832567,-1498.78949728,0.00012,2]
[351052308,1738309832580,-1182.71091713,0.00012,2]
[351052310,1738309832593,-1026.73024974,0.00012,2]
[351052313,1738309832607,-286.429997,0.00012,2]
[351052315,1738309832621,-64229.19617131,0.00012,2]
[351052319,1738309832647,-8176.35,0.00012,2]
[351052321,1738309832660,-8216.25,0.00012,2]
[351052324,1738309832674,-30854.51128083,0.00012,2]
[351052527,1738309837816,-548.35263034,0.00012,2]
[351052528,1738309837829,-2597.6150036,0.00012,2]
[351052529,1738309837840,-2433.5601602,0.00012,2]
[351052530,1738309838038,-2364499.5380477,0.00012,2]
[351052531,1738309838048,-300.0,0.00012,2]
[351052532,1738309838058,-3000.0,0.00012,2]
[351052533,1738309838068,-2000.0,0.00012,2]
[351052534,1738309838077,-200.0,0.00012,2]
[351052535,1738309838087,-5558.0,0.00012,3]
[351052536,1738309838097,-2000.0,0.0001212,2]
[351052537,1738309838106,-200.0,0.0001212,2]
[351052538,1738309838117,-630.62,0.00012136,2]
[351052539,1738309838127,-746.69309055,0.00012241,2]
[351052540,1738309838136,-630.62,0.00012273,2]
[351052541,1738309838145,-5558.0,0.000124,5]
[351052542,1738309838155,-630.62,0.0001241,2]
[351052543,1738309838164,-168.19,0.00012518,2]
[351052544,1738309838174,-202.56043897,0.00012521,2]
[351052545,1738309838183,-630.62,0.00012547,2]
[351052546,1738309838193,-2808.29156212,0.00012667,2]
[351052547,1738309838203,-4102.38006023,0.00012667,2]
[351052548,1738309838213,-630.62,0.00012684,2]
[351052549,1738309838223,-630.62,0.00012821,2]
[351052550,1738309838232,-549.94,0.00012935,2]
[351052551,1738309838241,-630.62,0.00012958,2]
[351052552,1738309838251,-1000.0,0.00013038,2]
[351052553,1738309838261,-630.62,0.00013095,2]
[351052554,1738309838270,-334.36,0.0001317,2]
[351052555,1738309838280,-630.62,0.00013232,2]
[351052556,1738309838290,-630.62,0.00013369,2]
[351052557,1738309838299,-2808.29156212,0.00013433,2]
[351052558,1738309838308,-4102.38006023,0.00013433,2]
[351052559,1738309838318,-630.62,0.00013506,2]
[351052561,1738309838327,-630.62,0.00013643,2]
[351052563,1738309838336,-252.89,0.00013699,2]
[351052565,1738309838345,-637.22,0.000137,2]
[351052567,1738309838355,-637.22,0.000137,2]
[351052569,1738309838365,-630.62,0.0001378,2]
[351052571,1738309838375,-630.62,0.00013917,2]
[351052573,1738309838384,-630.62,0.00014054,2]
[351052575,1738309838393,-630.62,0.00014191,2]
[351052577,1738309838403,-2808.29156212,0.000142,2]
[351052579,1738309838412,-4102.38006023,0.000142,2]
[351052581,1738309838421,-630.62,0.00014328,2]
[351052583,1738309838431,-1000.0,0.00014342,2]
[351052585,1738309838440,-630.62,0.00014465,2]
[351052587,1738309838449,-334.36,0.00014487,2]
[351052589,1738309838459,-630.62,0.00014602,2]
[351052591,1738309838468,-630.62,0.00014739,2]
[351052593,1738309838477,-630.62,0.00014876,2]
[351052595,1738309838487,-2808.29156212,0.00014967,2]
[351052597,1738309838496,-4102.38006023,0.00014967,2]
[351052599,1738309838505,-2207.6599,0.00015,10]
[351052601,1738309838514,-13501.27977824,0.00015,2]
[351052603,1738309838524,-151.29803939,0.00015,20]
[351052605,1738309838533,-630.62,0.00015013,2]
[351052608,1738309838545,-740.23,0.00015133,2]
[351052611,1738309838554,-630.72029,0.0001515,2]
[351052614,1738309838564,-549.94,0.00015198,2]
[351052617,1738309838574,-1059.0,0.00015316,2]
[351052620,1738309838584,-1000.0,0.00015645,2]
[351052623,1738309838593,-2808.29156212,0.00015733,2]
[351052626,1738309838602,-4102.38006023,0.00015733,2]
[351052629,1738309838612,-334.36,0.00015804,2]
[351052630,1738309838622,-2000.0,0.000159,5]
[351052633,1738309838632,-74443.01863843,0.00016,2]
[351052635,1738309838641,-879.0,0.00016438,2]
[351052638,1738309838651,-5754.79,0.000165,2]
[351052640,1738309838660,-2808.29156212,0.000165,2]
[351052642,1738309838670,-4102.38006023,0.000165,2]
[351052644,1738309838680,-1079.0,0.000168,2]
[351052646,1738309838689,-157.86,0.00016813,2]
[351052648,1738309838699,-364.83,0.00016813,2]
[351052650,1738309838709,-3000.0,0.00017,2]
[351052652,1738309838719,-151.05,0.00017052,30]
[351052654,1738309838728,-1208.0,0.00017233,2]
[351052655,1738309838738,-2808.29156212,0.00017267,2]
[351052657,1738309838748,-4102.38006023,0.00017267,2]
[351052660,1738309838757,-172.97,0.000173,2]
[351052662,1738309838767,-549.94,0.00017462,2]
[351052663,1738309838776,-568.51821113,0.00017564,2]
[351052665,1738309838786,-500.0,0.00017564,2]
[351052668,1738309838796,-357.85616503,0.00017808,2]
[351052670,1738309838805,-455.168,0.00017873,2]
[351052672,1738309838815,-592.92,0.00017879,2]
[351052674,1738309838824,-237.17563777,0.000179,2]
[351052676,1738309838834,-7266.06423845,0.000179,2]
[351052678,1738309838844,-201.56961272,0.000179,3]
[351052680,1738309838853,-221.72023537,0.000179,2]
[351052682,1738309838863,-167.65,0.00017942,2]
[351052684,1738309838872,-675763.0,0.00018,2]
[351052686,1738309838881,-1872.54471819,0.00018,2]
[351052688,1738309838891,-2808.29156212,0.00018033,2]
[351052690,1738309838901,-4102.38006023,0.00018033,2]
[351052692,1738309838911,-5754.79,0.000181,2]
[351052694,1738309838922,-152.0,0.00018207,3]
[351052696,1738309838931,-568.0,0.00018633,2]
[351052698,1738309838941,-1867.0,0.00018633,2]
[351052700,1738309838950,-782.0,0.00018633,2]
[351052702,1738309838960,-2952.0,0.00018633,2]
[351052704,1738309838969,-1263.0,0.00018633,2]
[351052706,1738309838979,-907.0,0.00018633,2]
[351052708,1738309838988,-150.0,0.00018633,2]
[351052710,1738309838998,-1329.312,0.00018633,2]
[351052712,1738309839007,-538.0,0.00018633,2]
[351052714,1738309839016,-3908.0,0.00018633,2]
[351052716,1738309839025,-150.0,0.00018633,2]
[351052718,1738309839035,-150.0,0.00018633,2]
[351052720,1738309839044,-1107.0,0.00018633,2]
[351052722,1738309839053,-208.74,0.00018649,2]
[351052724,1738309839063,-153.60173477,0.0001874,2]
[351052726,1738309839072,-152.854291,0.000188,2]
[351052728,1738309839081,-152.854291,0.000188,2]
[351052730,1738309839090,-153.963521,0.000188,2]
[351052732,1738309839099,-158.400445,0.000188,2]
[351052734,1738309839109,-331.36319117,0.000188,2]
[351052736,1738309839119,-2808.29156212,0.000188,2]
[351052738,1738309839128,-4102.38006023,0.000188,2]
[351052740,1738309839138,-400.0,0.000188,6]
[351052742,1738309839147,-593.01277253,0.00018873,2]
[351052744,1738309839155,-500.0,0.00018873,2]
[351052746,1738309839165,-500.0,0.00018873,2]
[351052748,1738309839174,-6869.8022744,0.0001888,2]
[351052750,1738309839183,-300.0,0.00018899,2]
[351052752,1738309839192,-77847.13,0.00018899,2]
[351052754,1738309839201,-300.0,0.00018899,2]
[351052756,1738309839210,-637985.24006859,0.000189,2]
[351052759,1738309839230,-735.15365519,0.000189,2]
[351052840,1738309840096,-387.5140452,0.00012158,2]
[351052842,1738309840107,-5789.4859548,0.000189,2]
[351052844,1738309840125,-610296.02456308,0.000189,2]
[351052846,1738309840138,-3061.12964125,0.000189,2]
[351052848,1738309840151,-1009.55199436,0.000189,2]
[351052853,1738309840186,-497.01774501,0.000189,2]
[351052862,1738309840278,-926.55131946,0.000189,2]
[351052865,1738309840290,-995.14648266,0.000189,2]
[351052867,1738309840303,-712.630521,0.000189,2]
[351052869,1738309840315,-2090.7,0.000189,2]
[351053084,1738309842804,-819205.06652992,0.000189,2]
[351053097,1738309842879,-5967.69615202,0.000189,2]
[351053108,1738309842958,-402205.34419673,0.000189,2]
[351053426,1738309846227,-11541.5782816,0.000189,2]
[351053434,1738309846291,-3089.79999999,0.000189,2]
[351053992,1738310362814,1000.0,0.00021,120]
[351053993,1738310431194,150.0,0.00021642,120]
[351053995,1738310490768,150.0,0.00020592,120]
[351053998,1738310812169,-209.75811793,0.00010137,2]
[351053999,1738310958125,-29.25188207,0.00010137,2]
[351054000,1738310958149,-500.0,0.00010137,2]
[351054001,1738310958172,-500.0,0.00010137,2]
[351054002,1738310958194,-441.88630513,0.00010137,2]
[351054003,1738310958216,-2543.2924568,0.00011051,2]
[351054014,1738311031978,-199.00774888,0.00011051,2]
[351054015,1738311031988,-150.0,0.00011101,2]
[351054016,1738311031997,-150.0,0.00011151,2]
[351054017,1738311032006,-41.490207,0.00012156,2]
[351054018,1738311032026,-108.509793,0.00012156,2]
[351054019,1738311032035,-3341.85509762,0.00012766,2]
[351054020,1738311032044,-222.24468977,0.00012766,2]
[351054021,1738311032053,-550.0,0.00013,2]
[351054022,1738311032062,-181.9,0.00013699,2]
[351054023,1738311032071,-369.24,0.00013811,2]
[351054024,1738311032080,-167.02,0.00014163,2]
[351054025,1738311032090,-377.69,0.0001475,2]
[351054026,1738311032099,-619.82,0.00015184,2]
[351054027,1738311032108,-378.53,0.00016174,2]
[351054028,1738311032117,-5558.0,0.000163,5]
[351054029,1738311032127,-300.0,0.00016399,2]
[351054030,1738311032136,-250.0,0.00016471,2]
[351054031,1738311032145,-738.70064615,0.000165,2]
[351054032,1738311032156,-444.29935385,0.000165,2]
[351054033,1738311032166,-5742.46813516,0.00016604,2]
[351054034,1738311032177,-1040.95651953,0.00016604,2]
[351054035,1738311032188,-8827.3,0.00016604,2]
[351054036,1738311032198,-282.20816542,0.00016604,2]
[351054037,1738311032218,-367.78854615,0.00016604,2]
[351054038,1738311032229,-438.01211999,0.00016604,2]
[351054039,1738311032265,-1472.14757156,0.00016604,2]
[351054040,1738311032275,-947.31015434,0.00016604,2]
[351054041,1738311032287,-3907.86416187,0.00016604,2]
[351054042,1738311032297,-280.710003,0.00016604,2]
[351054043,1738311032308,-593.23462298,0.00016604,2]
[351054044,1738311032317,-150.0,0.0001663,2]
[351054045,1738311032326,-1181.89537702,0.00016648,2]
[351054046,1738311032336,-294.33656805,0.00016648,2]
[351054047,1738311032359,-497.88805493,0.00016648,2]
[351054048,1738311032368,-169.75,0.00016696,2]
[351054049,1738311032377,-163.98,0.00016763,2]
[351054050,1738311032385,-429.91,0.00016791,2]
[351054051,1738311032394,-866.54,0.00016799,2]
[351054052,1738311032403,-239.01,0.00016813,2]
[351054053,1738311032412,-154.83,0.00016867,30]
[351054054,1738311032421,-1697.91,0.00016933,2]
[351054055,1738311032431,-1903.72,0.00017027,2]
[351054056,1738311032439,-550.0,0.00017042,2]
[351054057,1738311032449,-3810.8,0.00017042,2]
[351054058,1738311032461,-179.74,0.0001727,2]
[351054060,1738311032471,-179.74,0.00017313,2]
[351054061,1738311032480,-13339.0,0.00017348,2]
[351054062,1738311032488,-179.74,0.00017356,2]
[351054063,1738311032497,-619.82,0.00017448,2]
[351054064,1738311032506,-452.50918574,0.00017479,2]
[351054065,1738311032515,-1500.0,0.00017482,2]
[351054066,1738311032524,-500.0,0.00017564,2]
[351054067,1738311032533,-500.0,0.00017564,2]
[351054068,1738311032542,-163.98,0.00017601,2]
[351054069,1738311032550,-579.36,0.00017602,2]
[351054070,1738311032559,-1000.0,0.00017608,2]
[351054071,1738311032568,-3594.51549342,0.00017918,2]
[351054072,1738311032580,-420.0,0.00017922,2]
[351054073,1738311032590,-164.753,0.00017984,2]
[351054074,1738311032603,-637.609,0.00017984,2]
[351054075,1738311032613,-823.06958859,0.00018,2]
[351054076,1738311032622,-173.37,0.00018073,2]
[351054077,1738311032632,-400.0,0.000181,2]
[351054078,1738311032642,-167.65,0.00018102,2]
[351054079,1738311032652,-200.0,0.0001815,2]
[351054080,1738311032662,-431.18147599,0.00018403,2]
[351054081,1738311032671,-163.98,0.00018439,2]
[351054082,1738311032680,-150.0,0.00018538,2]
[351054083,1738311032689,-3908.0,0.00018538,2]
[351054084,1738311032697,-1107.0,0.00018538,2]
[351054085,1738311032707,-1200.0,0.000186,6]
[351054086,1738311032719,-1272.00448583,0.0001861,2]
[351054088,1738311032731,-260.46625275,0.0001861,2]
[351054089,1738311032741,-402.19397068,0.0001861,2]
[351054090,1738311032752,-3359.30989074,0.0001861,2]
[351054091,1738311032761,-1434.39010926,0.00018613,2]
[351054092,1738311032772,-897.09601597,0.00018613,2]
[351054093,1738311032781,-182.79998467,0.0001866,2]
[351054106,1738311037837,-173.49,0.00018418,2]
[351054108,1738311037846,-317.20001533,0.0001866,2]
[351054110,1738311037855,-8729.6162,0.000187,2]
[351054112,1738311037864,-4828.1826,0.000187,2]
[351054113,1738311037874,-1656.4476,0.000187,2]
[351054114,1738311037883,-5784.0226,0.000187,2]
[351054115,1738311038115,-2327.65579254,0.000187,6]
[351054116,1738311038127,-172.34420746,0.000187,6]
[351054117,1738311038137,-1000.0,0.000187,2]
[351054118,1738311038146,-2500.0,0.000187,2]
[351054119,1738311038155,-65456.42856493,0.0001871,2]
[351054120,1738311038164,-225.7,0.00018713,2]
[351054121,1738311038173,-2331.4861252,0.00018741,2]
[351054122,1738311038182,-500.0,0.00018767,7]
[351054123,1738311038191,-927.71,0.00018767,7]
[351054124,1738311038200,-154.518137,0.000188,2]
[351054125,1738311038210,-224.843209,0.000188,2]
[351054126,1738311038224,-28756.96975637,0.000188,2]
[351054127,1738311038244,-731.103313,0.000188,2]
[351054128,1738311038268,-1505.7221762,0.000188,2]
[351054130,1738311038278,-155.18475443,0.000188,2]
[351054132,1738311038288,-356.72128259,0.000188,2]
[351054134,1738311038299,-468.40396298,0.000188,2]
[351054137,1738311038314,-14590.06481448,0.000188,2]
[351054139,1738311038324,-334.7426332,0.000188,2]
[351054144,1738311038356,-9532.16317806,0.000188,2]
[351054146,1738311038367,-3243.033,0.000188,2]
[351054148,1738311038378,-7697.55692869,0.000188,2]
[351054150,1738311038387,-1000.0,0.000188,2]
[351054152,1738311038396,-5384.0689,0.000188,2]
[351054154,1738311038405,-515.5583,0.000188,2]
[351054156,1738311038414,-500.0,0.000188,2]
[351054158,1738311038423,-2511.0111,0.000188,2]
[351054160,1738311038431,-4126.51748749,0.000188,2]
[351054162,1738311038442,-3857.0189664,0.000188,2]
[351054164,1738311038456,-2254.69999991,0.000188,2]
[351054166,1738311038493,-434.39768314,0.000188,2]
[351054170,1738311038504,-61074.77856306,0.000188,2]
[351054172,1738311038513,-1208.6144,0.000188,2]
[351054174,1738311038523,-5000.0,0.000188,2]
[351054176,1738311038531,-2177.64986023,0.000188,2]
[351054178,1738311038540,-152.17950909,0.000188,2]
[351054179,1738311038549,-21103.13319282,0.000188,3]
[351054261,1738311039951,-15315.30000005,0.000188,3]
[351054262,1738311040007,-3581.56680713,0.000188,3]
[351054263,1738311040016,-3700.0,0.000188,6]
[351054264,1738311040026,-2331.4861252,0.00018869,2]
[351054265,1738311040035,-237.04706767,0.00018898,2]
[351054266,1738311040047,-136.47293233,0.00018898,2]
[351054267,1738311040056,-1008.99495767,0.00018899,5]
[351054268,1738311040067,-195.84761223,0.00018899,2]
[351054269,1738311040076,-226.11794083,0.00018899,2]
[351054270,1738311040086,-1514.93655698,0.000189,2]
[351054271,1738311040098,-3687.7752009,0.000189,2]
[351054272,1738311040121,-1963.4,0.000189,2]
[351054273,1738311040133,-777.3478708,0.000189,2]
[351054274,1738311040144,-931.99999,0.000189,2]
[351054275,1738311040155,-678162.42857703,0.000189,2]
[351054276,1738311040164,-201.99026882,0.000189,2]
[351054277,1738311040174,-3000.0,0.000189,2]
[351054278,1738311040183,-5000.0,0.000189,6]
[351054279,1738311040193,-158.36522813,0.000189,2]
[351054280,1738311040202,-158.36522806,0.000189,2]
[351054281,1738311040212,-158.36522806,0.000189,2]
[351054282,1738311040223,-158.36522806,0.000189,2]
[351054283,1738311040233,-380.54,0.000189,2]
[351054284,1738311040242,-2177.64986017,0.00018907,2]
[351054285,1738311040252,-158.36522806,0.00018909,2]
[351054286,1738311040261,-8060.768685,0.00018928,2]
[351054287,1738311040271,-158.36522806,0.00018983,2]
[351054288,1738311040281,-152.0,0.00018983,4]
[351054289,1738311040291,-153.60173478,0.00018986,2]
[351054290,1738311040301,-153.60173477,0.00018986,2]
[351054291,1738311040312,-2331.4861252,0.00018996,2]
[351054292,1738311040321,-4324.89,0.00019,3]
[351054293,1738311040331,-350.0,0.00019,4]
[351054294,1738311040342,-1000.0,0.00019,19]
[351054295,1738311040351,-2177.64986017,0.00019014,2]
[351054296,1738311040361,-153.963521,0.00019035,2]
[351054297,1738311040370,-500.0,0.00019041,7]
[351054298,1738311040380,-158.36522806,0.00019056,2]
[351054299,1738311040390,-500.0,0.00019057,2]
[351054300,1738311040400,-1060.33889669,0.00019066,3]
[351054301,1738311040410,-441.2677363,0.00019066,3]
[351054302,1738311040419,-119187.08137063,0.00019068,3]
[351054303,1738311040429,-108380.80693416,0.00019069,3]
[351054304,1738311040439,-441.2677363,0.0001907,3]
[351054305,1738311040449,-119187.08137063,0.00019071,3]
[351054306,1738311040458,-1844.17291466,0.00019072,2]
[351054307,1738311040470,-1215.05170047,0.00019075,3]
[351054308,1738311040480,-1060.33889668,0.00019076,3]
[351054309,1738311040488,-4626.56261623,0.00019076,3]
[351054310,1738311040498,-9262.17328193,0.00019077,3]
[351054311,1738311040508,-173.39732062,0.00019078,2]
[351054312,1738311040518,-264.81929886,0.00019078,2]
[351054313,1738311040527,-1374.1510355,0.00019078,2]